fUSD/lending_fUSD_20250503
["ID","MTS","AMOUNT","RATE_DAILY","PERIOD"]
[359704771,1746268232671,-450.0,0.00019743,2]
[359704772,1746268232681,-500.0,0.00019743,2]
[359704773,1746268232690,-698.15,0.00019743,2]
[359704774,1746268232699,-450.0,0.00019743,2]
[359704775,1746268232708,-450.0,0.00019743,2]
[359704776,1746268232717,-2154.93,0.00019743,2]
[359704777,1746268232727,-450.0,0.00019743,2]
[359704778,1746268232736,-462.27,0.00019743,2]
[359704779,1746268232745,-450.0,0.00019743,2]
[359704780,1746268232754,-450.0,0.00019743,2]
[359704781,1746268232764,-450.0,0.00019743,2]
[359704782,1746268232773,-450.0,0.00019743,2]
[359704783,1746268232783,-450.0,0.00019743,2]
[359704784,1746268232792,-597.39,0.00019743,2]
[359704785,1746268232801,-178.49233392,0.00019743,2]
[359704786,1746268232810,-452.27,0.00019743,2]
[359704787,1746268232819,-500.0,0.00019743,2]
[359704788,1746268232829,-1340.22,0.00019743,2]
[359704789,1746268232838,-450.0,0.00019743,2]
[359704790,1746268232847,-450.0,0.00019743,2]
[359704791,1746268232856,-500.0,0.00019743,2]
[359704792,1746268232865,-450.0,0.00019743,2]
[359704793,1746268232874,-450.0,0.00019743,2]
[359704794,1746268232883,-1567.74,0.00019743,2]
[359704795,1746268232892,-605.77,0.00019743,2]
[359704796,1746268232901,-450.0,0.00019743,2]
[359704797,1746268232910,-3574.79,0.00019743,2]
[359704798,1746268232919,-450.0,0.00019743,2]
[359704799,1746268232928,-450.0,0.00019743,2]
[359704800,1746268232937,-450.0,0.00019743,2]
[359704801,1746268232947,-450.0,0.00019743,2]
[359704802,1746268232957,-615.78,0.00019743,2]
[359704803,1746268232966,-450.0,0.00019743,2]
[359704804,1746268232975,-999.0,0.00019743,2]
[359704805,1746268232984,-2491.34,0.00019743,2]
[359704806,1746268232993,-978.6,0.00019743,2]
[359704807,1746268233002,-678.03,0.00019743,2]
[359704808,1746268233011,-468.5178936,0.00019743,2]
[359704809,1746268233019,-1005.69,0.00019743,2]
[359704810,1746268233028,-507.9,0.00019743,2]
[359704811,1746268233039,-678.5,0.00019743,2]
[359704812,1746268233048,-1571.78,0.00019743,2]
[359704813,1746268233057,-450.0,0.00019743,2]
[359704814,1746268233068,-450.0,0.00019743,2]
[359704815,1746268233078,-558.63,0.00019743,2]
[359704816,1746268233087,-450.0,0.00019743,2]
[359704817,1746268233096,-450.0,0.00019743,2]
[359704818,1746268233105,-825.16,0.00019743,2]
[359704819,1746268233119,-450.0,0.00019743,2]
[359704820,1746268233129,-509.76,0.00019743,2]
[359704821,1746268233138,-450.0,0.00019743,2]
[359704822,1746268233148,-624.68,0.00019743,2]
[359704823,1746268233156,-450.0,0.00019743,2]
[359704824,1746268233166,-668.5,0.00019743,2]
[359704825,1746268233176,-450.0,0.00019743,2]
[359704826,1746268233186,-911.53,0.00019743,2]
[359704827,1746268233197,-538.88,0.00019743,2]
[359704828,1746268233206,-450.0,0.00019743,2]
[359704829,1746268233216,-820.05,0.00019743,2]
[359704830,1746268233225,-940.93,0.00019743,2]
[359704831,1746268233235,-537.3,0.00019743,2]
[359704832,1746268233244,-4446.61,0.00019743,2]
[359704833,1746268233254,-245.81325155,0.00019743,2]
[359704834,1746268233264,-450.0,0.00019743,2]
[359704835,1746268233274,-384.65546112,0.00019743,2]
[359704836,1746268233284,-450.0,0.00019743,2]
[359704837,1746268233294,-1067.31,0.00019743,2]
[359704838,1746268233303,-450.0,0.00019743,2]
[359704839,1746268233312,-1135.97,0.00019743,2]
[359704840,1746268233322,-450.0,0.00019743,2]
[359704841,1746268233331,-450.0,0.00019743,2]
[359704842,1746268233341,-4732.29,0.00019743,2]
[359704843,1746268233351,-450.0,0.00019743,2]
[359704844,1746268233361,-503.51,0.00019743,2]
[359704845,1746268233370,-450.0,0.00019743,2]
[359704846,1746268233380,-450.0,0.00019743,2]
[359704847,1746268233389,-3974.78,0.00019743,2]
[359704848,1746268233398,-468.61,0.00019743,2]
[359704849,1746268233408,-548.99,0.00019743,2]
[359704850,1746268233417,-586.78,0.00019743,2]
[359704851,1746268233427,-835.75,0.00019743,2]
[359704852,1746268233437,-450.0,0.00019743,2]
[359704853,1746268233446,-450.0,0.00019743,2]
[359704854,1746268233456,-450.0,0.00019743,2]
[359704855,1746268233465,-450.0,0.00019743,2]
[359704856,1746268233474,-567.02,0.00019743,2]
[359704857,1746268233484,-450.0,0.00019743,2]
[359704858,1746268233493,-452.44,0.00019743,2]
[359704859,1746268233503,-450.0,0.00019743,2]
[359704860,1746268233513,-510.91,0.00019743,2]
[359704861,1746268233523,-450.0,0.00019743,2]
[359704862,1746268233532,-450.0,0.00019743,2]
[359704863,1746268233541,-450.0,0.00019743,2]
[359704864,1746268233550,-4280.0,0.00019743,2]
[359704865,1746268233560,-450.0,0.00019743,2]
[359704866,1746268233568,-450.0,0.00019743,2]
[359704867,1746268233578,-72552.3,0.00019743,2]
[359704868,1746268233588,-1197.02,0.00019743,2]
[359704869,1746268233598,-545.57,0.00019743,2]
[359704870,1746268233607,-824.54,0.00019743,2]
[359704871,1746268233617,-450.0,0.00019743,2]
[359704872,1746268233626,-4149.3,0.00019743,2]
[359704873,1746268233635,-450.0,0.00019743,2]
[359704874,1746268233645,-450.0,0.00019743,2]
[359704875,1746268233654,-450.0,0.00019743,2]
[359704876,1746268233663,-450.0,0.00019743,2]
[359704877,1746268233673,-20966.69,0.00019743,2]
[359704878,1746268233682,-450.0,0.00019743,2]
[359704879,1746268233691,-1002.7,0.00019743,2]
[359704880,1746268233700,-500.66191543,0.00019743,2]
[359704881,1746268233709,-450.0,0.00019743,2]
[359704882,1746268233718,-450.0,0.00019743,2]
[359704883,1746268233727,-1482.44,0.00019743,2]
[359704884,1746268233736,-450.0,0.00019743,2]
[359704885,1746268233746,-450.0,0.00019743,2]
[359704886,1746268233755,-503.33,0.00019743,2]
[359704887,1746268233764,-450.0,0.00019743,2]
[359704888,1746268233773,-450.0,0.00019743,2]
[359704889,1746268233783,-5034.48,0.00019743,2]
[359704890,1746268233792,-450.0,0.00019744,2]
[359704891,1746268233801,-450.0,0.00019744,2]
[359704892,1746268233810,-576.32,0.00019744,2]
[359704893,1746268233819,-1526.35,0.00019744,2]
[359704894,1746268233831,-497.06,0.00019744,2]
[359704895,1746268233841,-450.0,0.00019744,2]
[359704896,1746268233851,-477.03160307,0.00019744,2]
[359704897,1746268233860,-664.97,0.00019744,2]
[359704898,1746268233871,-450.0,0.00019744,2]
[359704899,1746268233880,-450.0,0.00019744,2]
[359704900,1746268233890,-1447.63,0.00019744,2]
[359704901,1746268233899,-469.06,0.00019744,2]
[359704902,1746268233909,-521.38,0.00019744,2]
[359704903,1746268233919,-472.25,0.00019744,2]
[359704904,1746268233928,-450.0,0.00019744,2]
[359704905,1746268233938,-450.0,0.00019744,2]
[359704906,1746268233947,-450.0,0.00019744,2]
[359704907,1746268233956,-450.0,0.00019744,2]
[359704908,1746268233965,-594.59,0.00019744,2]
[359704909,1746268233974,-525.61,0.00019744,2]
[359704910,1746268233984,-450.0,0.00019744,2]
[359704911,1746268233993,-1524.97,0.00019744,2]
[359704912,1746268234003,-730.2,0.00019744,2]
[359704913,1746268234012,-545.52,0.00019744,2]
[359704914,1746268234021,-450.0,0.00019744,2]
[359704915,1746268234031,-643.29,0.00019744,2]
[359704916,1746268234040,-599.35,0.00019744,2]
[359704917,1746268234050,-515.4,0.00019744,2]
[359704918,1746268234059,-956.52,0.00019744,2]
[359704919,1746268234068,-450.0,0.00019744,2]
[359704920,1746268234078,-450.0,0.00019744,2]
[359704921,1746268234087,-450.0,0.00019744,2]
[359704922,1746268234096,-450.0,0.00019744,2]
[359704923,1746268234106,-761.79,0.00019744,2]
[359704924,1746268234115,-450.0,0.00019744,2]
[359704925,1746268234124,-1204.57,0.00019744,2]
[359704926,1746268234134,-469.84,0.00019744,2]
[359704927,1746268234143,-483.17,0.00019744,2]
[359704928,1746268234152,-493.54,0.00019744,2]
[359704929,1746268234163,-450.0,0.00019744,2]
[359704930,1746268234171,-1371.92,0.00019744,2]
[359704931,1746268234180,-584.58,0.00019744,2]
[359704932,1746268234190,-594.09,0.00019744,2]
[359704933,1746268234199,-450.0,0.00019744,2]
[359704934,1746268234209,-450.0,0.00019744,2]
[359704935,1746268234218,-450.0,0.00019744,2]
[359704936,1746268234227,-802.46,0.00019744,2]
[359704937,1746268234236,-704.05,0.00019744,2]
[359704938,1746268234246,-450.0,0.00019744,2]
[359704939,1746268234255,-328.83609897,0.00019744,2]
[359704940,1746268234264,-450.0,0.00019744,2]
[359704941,1746268234273,-450.0,0.00019744,2]
[359704942,1746268234282,-409.56184418,0.00019744,2]
[359704943,1746268234292,-2244.49,0.00019744,2]
[359704944,1746268234301,-450.0,0.00019744,2]
[359704945,1746268234311,-637.66,0.00019744,2]
[359704946,1746268234321,-977.65,0.00019744,2]
[359704947,1746268234330,-450.0,0.00019744,2]
[359704948,1746268234339,-2015.01,0.00019744,2]
[359704949,1746268234348,-693.55,0.00019744,2]
[359704950,1746268234358,-551.07,0.00019744,2]
[359704951,1746268234368,-450.0,0.00019744,2]
[359704952,1746268234378,-450.0,0.00019744,2]
[359704953,1746268234387,-450.0,0.00019744,2]
[359704954,1746268234397,-450.0,0.00019744,2]
[359704955,1746268234407,-3252.93,0.00019744,2]
[359704956,1746268234416,-450.0,0.00019744,2]
[359704957,1746268234426,-450.0,0.00019744,2]
[359704958,1746268234435,-200.0,0.00019745,2]
[359704959,1746268234444,-450.0,0.00019745,2]
[359704960,1746268234454,-381.62607486,0.00019757,2]
[359704961,1746268234463,-150.0,0.00019773,2]
[359704962,1746268234472,-150.0,0.00019773,2]
[359704963,1746268234481,-500.0,0.00019773,2]
[359704964,1746268234490,-150.0,0.00019773,2]
[359704965,1746268234500,-150.0,0.00019773,2]
[359704966,1746268234509,-222.40857925,0.00019773,2]
[359704967,1746268234518,-500.0,0.00019773,2]
[359704968,1746268234527,-500.0,0.00019773,2]
[359704969,1746268234536,-228.28560537,0.00019773,2]
[359704970,1746268234546,-150.0,0.00019773,2]
[359704971,1746268234555,-191.08241789,0.00019773,2]
[359704972,1746268234564,-150.0,0.00019773,2]
[359704973,1746268234574,-500.0,0.00019773,2]
[359704974,1746268234583,-500.0,0.00019773,2]
[359704975,1746268234592,-150.0,0.00019773,2]
[359704976,1746268234601,-500.0,0.00019773,2]
[359704977,1746268234610,-381.62607486,0.00019786,2]
[359704978,1746268234619,-428.1798925,0.00019799,2]
[359704979,1746268234629,-381.62607486,0.00019814,2]
[359704980,1746268234638,-2000.0,0.0001984,2]
[359704981,1746268234647,-200.0,0.0001984,2]
[359704982,1746268234657,-381.62607486,0.00019843,2]
[359704983,1746268234820,-381.62607486,0.00019871,2]
[359704984,1746268234832,-236.97992493,0.0001988,2]
[359704985,1746268234842,-236.97992491,0.00019882,2]
[359704986,1746268234851,-236.97992491,0.00019884,2]
[359704987,1746268234860,-225.68268607,0.00019886,2]
[359704988,1746268234870,-236.97992491,0.00019887,2]
[359704989,1746268234879,-1912.22535992,0.00019889,2]
[359704990,1746268235195,-911.57,0.00019889,2]
[359704996,1746268237755,-587.15,0.00019743,2]
[359704997,1746268237764,-450.0,0.00019743,2]
[359704998,1746268237774,-429.51032594,0.00019889,2]
[359704999,1746268237783,-236.97992491,0.00019889,2]
[359705000,1746268237793,-236.97992491,0.00019891,2]
[359705001,1746268237802,-236.97992491,0.00019893,2]
[359705002,1746268237811,-236.97992491,0.00019896,2]
[359705003,1746268237821,-236.97992491,0.00019898,2]
[359705004,1746268237834,-834.1090273,0.000199,2]
[359705005,1746268237844,-274.722,0.000199,2]
[359705006,1746268237853,-3001.35,0.000199,2]
[359705007,1746268237862,-306.48353203,0.000199,2]
[359705008,1746268237872,-496.04724683,0.000199,2]
[359705009,1746268237882,-3553.49519473,0.000199,2]
[359705067,1746268239814,-25046.00702548,0.000199,2]
[359705068,1746268239824,-3015.50152939,0.000199,3]
[359705069,1746268239837,-330.3898565,0.000199,2]
[359705070,1746268239847,-381.62607486,0.000199,2]
[359705071,1746268239857,-164.335077,0.000199,2]
[359705072,1746268239866,-206.00517061,0.000199,2]
[359705073,1746268239877,-236.97992491,0.000199,2]
[359705074,1746268239887,-803.17335322,0.000199,2]
[359705075,1746268239896,-500.0,0.00019945,2]
[359705076,1746268239907,-514.0,0.0001997,2]
[359705077,1746268239916,-151.0,0.00019972,2]
[359705078,1746268239925,-500.0,0.00019973,2]
[359705079,1746268239934,-500.0,0.00019973,2]
[359705080,1746268239944,-500.0,0.00019973,2]
[359705081,1746268239953,-500.0,0.00019973,2]
[359705082,1746268239963,-431.26260632,0.00019973,2]
[359705083,1746268239973,-504.1525849,0.00019973,2]
[359705084,1746268239982,-500.0,0.00019973,2]
[359705085,1746268239992,-500.0,0.00019973,2]
[359705086,1746268240002,-500.0,0.00019973,2]
[359705087,1746268240012,-500.0,0.00019973,2]
[359705088,1746268240022,-500.0,0.00019973,2]
[359705089,1746268240031,-151.0,0.00019974,2]
[359705090,1746268240041,-206.00517044,0.00019974,2]
[359705091,1746268240051,-151.0,0.00019975,2]
[359705092,1746268240060,-151.0,0.00019976,2]
[359705093,1746268240070,-78291.55581241,0.0001998,2]
[359705094,1746268240079,-500.0,0.00019985,2]
[359705095,1746268240089,-500.0,0.00019985,2]
[359705096,1746268240098,-500.0,0.00019985,2]
[359705097,1746268240108,-500.0,0.00019985,2]
[359705098,1746268240117,-500.0,0.00019985,2]
[359705099,1746268240127,-500.0,0.00019985,2]
[359705100,1746268240137,-40665.28617599,0.00019985,2]
[359705101,1746268240146,-500.0,0.00019985,2]
[359705102,1746268240155,-500.0,0.00019985,2]
[359705103,1746268240165,-500.0,0.00019985,2]
[359705104,1746268240174,-419.65051405,0.00019985,2]
[359705105,1746268240183,-500.0,0.00019985,2]
[359705106,1746268240193,-32319.6683149,0.00019986,2]
[359705107,1746268240203,-364456.2812703,0.00019986,2]
[359705108,1746268240212,-2749.9828195,0.00019986,2]
[359705109,1746268240222,-52665.1437168,0.00019986,2]
[359705110,1746268240231,-1403.7312188,0.00019986,2]
[359705111,1746268240241,-1049.31502534,0.00019989,2]
[359705112,1746268240251,-1049.31502534,0.0001999,2]
[359705113,1746268240260,-1049.31502534,0.0001999,2]
[359705114,1746268240270,-306.48353201,0.00019991,2]
[359705115,1746268240280,-500.0,0.00019998,2]
[359705116,1746268240290,-1526.0,0.00019999,2]
[359705117,1746268240300,-366.20032378,0.00019999,2]
[359705118,1746268240310,-300.0,0.00019999,2]
[359705119,1746268240319,-300.0,0.00019999,2]
[359705120,1746268240329,-450.0,0.00019999,2]
[359705121,1746268240339,-450.0,0.00019999,2]
[359705122,1746268240349,-450.0,0.00019999,2]
[359705123,1746268240359,-450.0,0.00019999,2]
[359705124,1746268240369,-450.0,0.00019999,2]
[359705125,1746268240378,-450.0,0.00019999,2]
[359705126,1746268240388,-450.0,0.00019999,2]
[359705127,1746268240397,-450.0,0.00019999,2]
[359705128,1746268240407,-500.0,0.00019999,2]
[359705129,1746268240417,-500.0,0.00019999,2]
[359705130,1746268240426,-500.0,0.00019999,2]
[359705131,1746268240436,-500.0,0.00019999,2]
[359705132,1746268240445,-500.0,0.00019999,2]
[359705133,1746268240455,-628.07395844,0.00019999,2]
[359705134,1746268240464,-450.0,0.00019999,2]
[359705135,1746268240474,-450.0,0.00019999,2]
[359705136,1746268240483,-559.50863215,0.00019999,2]
[359705137,1746268240493,-450.0,0.00019999,2]
[359705138,1746268240503,-450.0,0.00019999,2]
[359705139,1746268240512,-450.0,0.00019999,2]
[359705140,1746268240523,-450.0,0.00019999,2]
[359705141,1746268240533,-500.0,0.00019999,2]
[359705142,1746268240542,-370.243055,0.00019999,2]
[359705143,1746268240552,-463.30807978,0.00019999,2]
[359705144,1746268240562,-450.0,0.00019999,2]
[359705145,1746268240572,-450.0,0.00019999,2]
[359705146,1746268240582,-450.0,0.00019999,2]
[359705147,1746268240591,-450.0,0.00019999,2]
[359705148,1746268240600,-450.0,0.00019999,2]
[359705149,1746268240610,-450.0,0.00019999,2]
[359705150,1746268240620,-450.0,0.00019999,2]
[359705151,1746268240630,-450.0,0.00019999,2]
[359705152,1746268240639,-3004.65,0.00019999,2]
[359705153,1746268240648,-545.25,0.00019999,2]
[359705154,1746268240658,-165.72601015,0.00019999,2]
[359705155,1746268240668,-450.0,0.00019999,2]
[359705156,1746268240678,-450.0,0.00019999,2]
[359705157,1746268240687,-450.0,0.00019999,2]
[359705158,1746268241066,-450.0,0.00019999,2]
[359705159,1746268241076,-490.12,0.00019999,2]
[359705160,1746268241085,-450.0,0.00019999,2]
[359705161,1746268241094,-654.95,0.00019999,2]
[359705162,1746268241104,-499.81,0.00019999,2]
[359705163,1746268241113,-450.0,0.00019999,2]
[359705164,1746268241123,-450.0,0.00019999,2]
[359705165,1746268241132,-450.0,0.00019999,2]
[359705166,1746268241141,-450.0,0.00019999,2]
[359705167,1746268241150,-472.8832217,0.00019999,2]
[359705168,1746268241160,-479.58872183,0.00019999,2]
[359705169,1746268241169,-450.0,0.00019999,2]
[359705170,1746268241179,-450.0,0.00019999,2]
[359705171,1746268241188,-465.69445318,0.00019999,2]
[359705172,1746268241198,-450.0,0.00019999,2]
[359705173,1746268241207,-460.24697355,0.00019999,2]
[359705174,1746268241216,-495.23,0.00019999,2]
[359705175,1746268241226,-450.0,0.00019999,2]
[359705176,1746268241235,-505.03,0.00019999,2]
[359705177,1746268241245,-450.0,0.00019999,2]
[359705178,1746268241255,-450.0,0.00019999,2]
[359705179,1746268241263,-450.0,0.00019999,2]
[359705180,1746268241273,-450.0,0.00019999,2]
[359705181,1746268241282,-450.0,0.00019999,2]
[359705182,1746268241291,-15659.24018753,0.00019999,2]
[359705183,1746268241301,-457.88,0.00019999,2]
[359705184,1746268241310,-463.64256964,0.00019999,2]
[359705185,1746268241319,-450.0,0.00019999,2]
[359705186,1746268241329,-450.0,0.00019999,2]
[359705187,1746268241339,-450.0,0.00019999,2]
[359705188,1746268241348,-450.0,0.00019999,2]
[359705189,1746268241357,-450.0,0.00019999,2]
[359705190,1746268241367,-450.0,0.00019999,2]
[359705191,1746268241376,-450.0,0.00019999,2]
[359705192,1746268241386,-594.47,0.00019999,2]
[359705193,1746268241394,-450.0,0.00019999,2]
[359705194,1746268241403,-248.85891665,0.00019999,2]
[359705195,1746268241413,-450.0,0.00019999,2]
[359705196,1746268241423,-450.0,0.00019999,2]
[359705197,1746268241432,-450.0,0.00019999,2]
[359705198,1746268241441,-450.0,0.00019999,2]
[359705199,1746268241451,-450.0,0.00019999,2]
[359705200,1746268241460,-450.0,0.00019999,2]
[359705201,1746268241469,-450.0,0.00019999,2]
[359705202,1746268241478,-631.88,0.00019999,2]
[359705203,1746268241487,-450.0,0.00019999,2]
[359705204,1746268241497,-450.0,0.00019999,2]
[359705205,1746268241508,-450.0,0.00019999,2]
[359705206,1746268241517,-450.0,0.00019999,2]
[359705207,1746268241526,-520.14886938,0.00019999,2]
[359705208,1746268241535,-450.0,0.00019999,2]
[359705209,1746268241545,-450.0,0.00019999,2]
[359705210,1746268241554,-450.0,0.00019999,2]
[359705211,1746268241563,-450.0,0.00019999,2]
[359705212,1746268241572,-450.0,0.00019999,2]
[359705213,1746268241581,-450.0,0.00019999,2]
[359705214,1746268241591,-450.0,0.00019999,2]
[359705215,1746268241600,-450.0,0.00019999,2]
[359705216,1746268241609,-450.0,0.00019999,2]
[359705217,1746268241618,-450.0,0.00019999,2]
[359705218,1746268241628,-450.0,0.00019999,2]
[359705219,1746268241637,-450.0,0.00019999,2]
[359705220,1746268241646,-450.0,0.00019999,2]
[359705221,1746268241655,-804.35,0.00019999,2]
[359705222,1746268241664,-519.41,0.00019999,2]
[359705223,1746268241673,-450.0,0.00019999,2]
[359705224,1746268241682,-450.0,0.00019999,2]
[359705225,1746268241691,-500.0,0.00019999,2]
[359705226,1746268241700,-500.0,0.00019999,2]
[359705227,1746268241710,-500.0,0.00019999,2]
[359705228,1746268241719,-500.0,0.00019999,2]
[359705229,1746268241728,-500.0,0.00019999,2]
[359705230,1746268241737,-500.0,0.00019999,2]
[359705231,1746268241746,-192.3518044,0.00019999,2]
[359705232,1746268241755,-467.7110541,0.00019999,2]
[359705233,1746268241765,-450.0,0.00019999,2]
[359705234,1746268241774,-460.29768648,0.00019999,2]
[359705235,1746268241783,-450.0,0.00019999,2]
[359705236,1746268241792,-450.0,0.00019999,2]
[359705237,1746268241801,-973.69,0.00019999,2]
[359705238,1746268241810,-450.0,0.00019999,2]
[359705239,1746268241819,-464.77982689,0.00019999,2]
[359705240,1746268241830,-500.0,0.00019999,2]
[359705241,1746268241842,-500.0,0.00019999,2]
[359705242,1746268241851,-437.76,0.00019999,2]
[359705243,1746268241861,-450.0,0.00019999,2]
[359705244,1746268241870,-674.87,0.00019999,2]
[359705245,1746268241881,-500.0,0.00019999,2]
[359705246,1746268241890,-500.0,0.00019999,2]
[359705247,1746268241899,-462.55021192,0.00019999,2]
[359705248,1746268241908,-500.0,0.00019999,2]
[359705249,1746268241919,-500.0,0.00019999,2]
[359705250,1746268241929,-587.97322185,0.00019999,2]
[359705251,1746268241938,-66823.38330018,0.00019999,2]
[359705252,1746268241948,-550.76,0.00019999,2]
[359705253,1746268241957,-450.0,0.00019999,2]
[359705254,1746268241966,-450.0,0.00019999,2]
[359705255,1746268241975,-450.0,0.00019999,2]
[359705256,1746268241985,-473.26684363,0.00019999,2]
[359705257,1746268241994,-785.04,0.00019999,2]
[359705258,1746268242006,-450.0,0.00019999,2]
[359705259,1746268242015,-450.0,0.00019999,2]
[359705260,1746268242024,-450.0,0.00019999,2]
[359705261,1746268242033,-450.0,0.00019999,2]
[359705262,1746268242042,-450.0,0.00019999,2]
[359705263,1746268242052,-450.0,0.00019999,2]
[359705264,1746268242061,-450.0,0.00019999,2]
[359705265,1746268242070,-450.0,0.00019999,2]
[359705266,1746268242080,-512.22,0.00019999,2]
[359705267,1746268242089,-450.0,0.00019999,2]
[359705268,1746268242098,-450.0,0.00019999,2]
[359705269,1746268242108,-2079.34,0.00019999,2]
[359705270,1746268242117,-450.0,0.00019999,2]
[359705271,1746268242126,-450.0,0.00019999,2]
[359705272,1746268242136,-450.0,0.00019999,2]
[359705273,1746268242145,-450.0,0.00019999,2]
[359705274,1746268242154,-450.0,0.00019999,2]
[359705275,1746268242164,-450.0,0.00019999,2]
[359705276,1746268242173,-994.94,0.00019999,2]
[359705277,1746268242183,-450.0,0.00019999,2]
[359705278,1746268242192,-450.0,0.00019999,2]
[359705279,1746268242201,-1083.39,0.00019999,2]
[359705280,1746268242211,-450.0,0.00019999,2]
[359705281,1746268242220,-450.0,0.00019999,2]
[359705282,1746268242229,-510.69,0.00019999,2]
[359705283,1746268242238,-450.0,0.00019999,2]
[359705284,1746268242248,-450.0,0.00019999,2]
[359705285,1746268242258,-307042.77607111,0.0002,2]
[359705286,1746268242267,-2460366.34007951,0.0002,2]
[359705287,1746268242276,-91698.92907707,0.0002,2]
[359705288,1746268242286,-301.4080882,0.0002,2]
[359705289,1746268242295,-10000.0,0.0002,2]
[359705290,1746268242305,-1483.45349757,0.0002,2]
[359705291,1746268242314,-4305.94775952,0.0002,2]
[359705292,1746268242324,-481.47231778,0.0002,2]
[359705293,1746268242333,-50000.0,0.0002,2]
[359705294,1746268242343,-3054.93258235,0.0002,2]
[359705295,1746268242352,-5655.83784573,0.0002,2]
[359705296,1746268242362,-21637.44108725,0.0002,4]
[359705297,1746268242403,-484.0137292,0.0002,4]
[359705308,1746268248795,-450.0,0.00019743,2]
[359705309,1746268248807,-450.0,0.00019743,2]
[359705310,1746268248818,-553.89,0.00019744,2]
[359705311,1746268248829,-151.0,0.00019992,2]
[359705312,1746268248841,-1372.0,0.0002,2]
[359705313,1746268248852,-2336.213095,0.0002,4]
[359705314,1746268248870,-4458.82143992,0.0002,4]
[359705315,1746268388481,205.43564,0.0002,23]
[359705316,1746268556296,337.050319,0.0003,30]
[359705317,1746268561518,337.050319,0.0003,31]
[359705318,1746268567257,337.050319,0.0003,32]
[359705319,1746268572243,337.050319,0.0003,33]
[359705320,1746268577080,337.050319,0.0003,34]
[359705321,1746268581715,337.050319,0.0003,35]
[359705322,1746268585844,337.050319,0.0003,36]
[359705323,1746268590027,337.050319,0.0003,37]
[359705324,1746268594334,337.050319,0.0003,38]
[359705325,1746268599457,337.050319,0.0003,39]
[359705326,1746268605657,337.050319,0.0003,40]
[359705327,1746268730086,-186.165554,0.00019572,2]
[359705328,1746268730111,-151.0,0.00019643,2]
[359705329,1746268730139,-1342.4186,0.00019643,2]
[359705330,1746268730162,-159.81071009,0.00019644,2]
[359705331,1746268730187,-250.0,0.00019656,2]
[359705332,1746268730214,-803.49012857,0.0001974,2]
[359705333,1746268730239,-1200.0,0.00019741,2]
[359705334,1746268730263,-282.0,0.00019741,2]
[359705335,1746268730287,-450.0,0.00019742,2]
[359705336,1746268730311,-450.0,0.00019742,2]
[359705337,1746268730335,-450.0,0.00019742,2]
[359705338,1746268730362,-450.0,0.00019742,2]
[359705339,1746268730386,-450.0,0.00019742,2]
[359705340,1746268730410,-260.62472933,0.00019742,2]
[359705341,1746268730436,-450.0,0.00019742,2]
[359705342,1746268730459,-450.0,0.00019742,2]